[Event "November 21 Late 2023"]
[Site "https://www.chess.com"]
[Date "2023.11.21"]
[Round "2"]
[White "Lutz, Igor Oscar"]
[Black "Zhurbinsky, David"]
[Result "0-1"]
[Board "82"]
[TimeControl "180+1"]
[WhiteFideId "2110806"]
[BlackFideId "2072904"]
[WhiteElo "1749"]
[BlackElo "2640"]
[WhiteTeam "BRA"]
[BlackTeam "USA"]
[WhiteClock "0:00:03"]
[BlackClock "0:00:05"]

1. d4 {[%clk 0:03:00]}  Nf6 {[%clk 0:02:52]} 2. c4 {[%clk 0:03:01]}  e6 {[%clk 0:02:53]} 3. g3 {[%clk 0:03:00]}  d5 {[%clk 0:02:34]} 4. Nf3 {[%clk 0:02:59]}  Be7 {[%clk 0:02:32]} 5. Bg2 {[%clk 0:02:59]}  O-O {[%clk 0:02:28]} 6. O-O {[%clk 0:02:59]}  dxc4 {[%clk 0:02:24]} 7. Ne5 {[%clk 0:02:53]}  Nc6 {[%clk 0:02:21]} 8. Bxc6 {[%clk 0:02:48]}  bxc6 {[%clk 0:02:22]} 9. Nxc6 {[%clk 0:02:48]}  Qd6 {[%clk 0:02:19]} 10. Nxe7+ {[%clk 0:02:48]}  Qxe7 {[%clk 0:02:20]} 11. Qa4 {[%clk 0:02:41]}  Rd8 {[%clk 0:02:16]} 12. Qxc4 {[%clk 0:02:37]}  Bb7 {[%clk 0:02:16]} 13. f3 {[%clk 0:02:32]}  e5 {[%clk 0:02:05]} 14. dxe5 {[%clk 0:02:17]}  Qxe5 {[%clk 0:02:06]} 15. Nc3 {[%clk 0:02:02]}  Rd4 {[%clk 0:01:51]} 16. Qb5 {[%clk 0:01:57]}  Qxb5 {[%clk 0:01:34]} 17. Nxb5 {[%clk 0:01:57]}  Rb4 {[%clk 0:01:33]} 18. Nc3 {[%clk 0:01:28]}  Ba6 {[%clk 0:01:29]} 19. a3 {[%clk 0:01:24]}  Rb6 {[%clk 0:01:23]} 20. b4 {[%clk 0:01:22]}  Re8 {[%clk 0:01:14]} 21. e4 {[%clk 0:01:14]}  Bxf1 {[%clk 0:01:12]} 22. Kxf1 {[%clk 0:01:14]}  Rc6 {[%clk 0:01:12]} 23. Bb2 {[%clk 0:01:14]}  Rd8 {[%clk 0:01:11]} 24. Ke2 {[%clk 0:01:12]}  Rcd6 {[%clk 0:01:08]} 25. Rd1 {[%clk 0:01:07]}  Rxd1 {[%clk 0:01:07]} 26. Nxd1 {[%clk 0:01:08]}  Nd7 {[%clk 0:01:06]} 27. Ne3 {[%clk 0:01:05]}  Nb6 {[%clk 0:01:06]} 28. f4 {[%clk 0:01:00]}  Na4 {[%clk 0:00:56]} 29. Be5 {[%clk 0:00:58]}  c6 {[%clk 0:00:52]} 30. Nf5 {[%clk 0:00:53]}  f6 {[%clk 0:00:45]} 31. Ne7+ {[%clk 0:00:37]}  Kf7 {[%clk 0:00:45]} 32. Nxc6 {[%clk 0:00:38]}  Rc8 {[%clk 0:00:42]} 33. Nxa7 {[%clk 0:00:23]}  Rc2+ {[%clk 0:00:42]} 34. Kd3 {[%clk 0:00:23]}  Ra2 {[%clk 0:00:37]} 35. Bd4 {[%clk 0:00:20]}  Rxa3+ {[%clk 0:00:36]} 36. Kc4 {[%clk 0:00:20]}  Ra2 {[%clk 0:00:33]} 37. b5 {[%clk 0:00:18]}  Rxh2 {[%clk 0:00:29]} 38. Kb4 {[%clk 0:00:19]}  Nb2 {[%clk 0:00:16]} 39. b6 {[%clk 0:00:16]}  Nd3+ {[%clk 0:00:16]} 40. Kb5 {[%clk 0:00:16]}  Rh1 {[%clk 0:00:13]} 41. Kc6 {[%clk 0:00:15]}  Rb1 {[%clk 0:00:14]} 42. b7 {[%clk 0:00:15]}  Nb4+ {[%clk 0:00:13]} 43. Kc7 {[%clk 0:00:14]}  Na6+ {[%clk 0:00:13]} 44. Kc8 {[%clk 0:00:14]}  Rc1+ {[%clk 0:00:12]} 45. Kd7 {[%clk 0:00:10]}  Rc7+ {[%clk 0:00:11]} 46. Kd6 {[%clk 0:00:10]}  Rxb7 {[%clk 0:00:11]} 47. Nc6 {[%clk 0:00:10]}  Rb3 {[%clk 0:00:08]} 48. Nd8+ {[%clk 0:00:10]}  Ke8 {[%clk 0:00:05]} 49. Nc6 {[%clk 0:00:09]}  Rxg3 {[%clk 0:00:05]} 50. e5 {[%clk 0:00:09]}  fxe5 {[%clk 0:00:05]} 51. Bxe5 {[%clk 0:00:10]}  h5 {[%clk 0:00:05]} 52. Nd4 {[%clk 0:00:10]}  h4 {[%clk 0:00:05]} 53. Ne6 {[%clk 0:00:10]}  h3 {[%clk 0:00:04]} 54. f5 {[%clk 0:00:11]}  Rd3+ {[%clk 0:00:03]} 55. Kc6 {[%clk 0:00:10]}  Nb4+ {[%clk 0:00:02]} 56. Kc5 {[%clk 0:00:10]}  Rd5+ {[%clk 0:00:03]} 57. Kxb4 {[%clk 0:00:10]}  Rxe5 {[%clk 0:00:04]} 58. Nxg7+ {[%clk 0:00:11]}  Kf7 {[%clk 0:00:04]} 59. Nh5 {[%clk 0:00:08]}  h2 {[%clk 0:00:04]} 60. Ng3 {[%clk 0:00:08]}  Re3 {[%clk 0:00:04]} 61. Nh1 {[%clk 0:00:07]}  Re1 {[%clk 0:00:05]} 62. Ng3 {[%clk 0:00:03]}  Rg1 {[%clk 0:00:05]} 0-1

[Event "November 21 Late 2023"]
[Site "https://www.chess.com"]
[Date "2023.11.21"]
[Round "2"]
[White "Musovic, Armin"]
[Black "Yeletsky, Ivan"]
[Result "1/2-1/2"]
[Board "84"]
[TimeControl "180+1"]
[WhiteFideId "939935"]
[BlackFideId "24180327"]
[WhiteElo "2322"]
[BlackElo "2358"]
[WhiteTeam "MNE"]
[BlackTeam "RUS"]
[WhiteClock "0:00:13"]
[BlackClock "0:00:05"]

1. e4 {[%clk 0:03:00]}  c5 {[%clk 0:02:59]} 2. c3 {[%clk 0:03:00]}  d5 {[%clk 0:02:57]} 3. exd5 {[%clk 0:03:00]}  Nf6 {[%clk 0:02:58]} 4. Na3 {[%clk 0:03:01]}  Nxd5 {[%clk 0:02:57]} 5. h3 {[%clk 0:03:01]}  Nc6 {[%clk 0:02:57]} 6. Nf3 {[%clk 0:03:01]}  e5 {[%clk 0:02:56]} 7. Bc4 {[%clk 0:03:01]}  Be6 {[%clk 0:02:43]} 8. O-O {[%clk 0:03:00]}  e4 {[%clk 0:02:43]} 9. Ne1 {[%clk 0:02:56]}  Bd6 {[%clk 0:02:29]} 10. Qe2 {[%clk 0:02:50]}  O-O {[%clk 0:02:19]} 11. Qxe4 {[%clk 0:02:48]}  Re8 {[%clk 0:02:20]} 12. Qc2 {[%clk 0:02:46]}  Ne5 {[%clk 0:02:18]} 13. d3 {[%clk 0:02:46]}  Qh4 {[%clk 0:02:15]} 14. Bxd5 {[%clk 0:02:37]}  Bxd5 {[%clk 0:02:14]} 15. f4 {[%clk 0:02:33]}  Ng6 {[%clk 0:02:00]} 16. Qf2 {[%clk 0:02:18]}  Qxf2+ {[%clk 0:01:56]} 17. Kxf2 {[%clk 0:02:19]}  Nxf4 {[%clk 0:01:55]} 18. Bxf4 {[%clk 0:02:10]}  Bxf4 {[%clk 0:01:56]} 19. Nf3 {[%clk 0:02:10]}  Be3+ {[%clk 0:01:51]} 20. Kg3 {[%clk 0:02:10]}  Re6 {[%clk 0:01:51]} 21. Rae1 {[%clk 0:02:09]}  Rae8 {[%clk 0:01:48]} 22. Nc4 {[%clk 0:02:08]}  Rg6+ {[%clk 0:01:29]} 23. Kh2 {[%clk 0:02:08]}  Bf4+ {[%clk 0:01:30]} 24. Kh1 {[%clk 0:02:06]}  Rxe1 {[%clk 0:01:28]} 25. Rxe1 {[%clk 0:02:06]}  h5 {[%clk 0:01:27]} 26. Re8+ {[%clk 0:01:59]}  Kh7 {[%clk 0:01:27]} 27. Nce5 {[%clk 0:01:54]}  Re6 {[%clk 0:01:17]} 28. Rxe6 {[%clk 0:01:49]}  Bxe6 {[%clk 0:01:18]} 29. b3 {[%clk 0:01:46]}  f6 {[%clk 0:01:07]} 30. Nc4 {[%clk 0:01:44]}  g5 {[%clk 0:01:01]} 31. a4 {[%clk 0:01:39]}  g4 {[%clk 0:01:00]} 32. hxg4 {[%clk 0:01:22]}  hxg4 {[%clk 0:01:01]} 33. Nfd2 {[%clk 0:01:21]}  f5 {[%clk 0:00:56]} 34. Kg1 {[%clk 0:01:17]}  Bd5 {[%clk 0:00:53]} 35. Kf2 {[%clk 0:01:11]}  Kg6 {[%clk 0:00:51]} 36. g3 {[%clk 0:01:08]}  Bc7 {[%clk 0:00:52]} 37. Ne3 {[%clk 0:01:07]}  Be6 {[%clk 0:00:49]} 38. Ng2 {[%clk 0:01:02]}  Kg5 {[%clk 0:00:45]} 39. Nc4 {[%clk 0:00:54]}  b6 {[%clk 0:00:44]} 40. Nd2 {[%clk 0:00:54]}  a6 {[%clk 0:00:44]} 41. Nc4 {[%clk 0:00:52]}  b5 {[%clk 0:00:45]} 42. axb5 {[%clk 0:00:52]}  axb5 {[%clk 0:00:45]} 43. Nd2 {[%clk 0:00:53]}  Be5 {[%clk 0:00:42]} 44. c4 {[%clk 0:00:41]}  b4 {[%clk 0:00:42]} 45. Nf1 {[%clk 0:00:37]}  f4 {[%clk 0:00:41]} 46. gxf4+ {[%clk 0:00:36]}  Bxf4 {[%clk 0:00:42]} 47. Nxf4 {[%clk 0:00:37]}  Kxf4 {[%clk 0:00:42]} 48. Ng3 {[%clk 0:00:38]}  Bf7 {[%clk 0:00:26]} 49. Ne2+ {[%clk 0:00:38]}  Ke5 {[%clk 0:00:26]} 50. Ke3 {[%clk 0:00:38]}  Bg6 {[%clk 0:00:26]} 51. d4+ {[%clk 0:00:31]}  cxd4+ {[%clk 0:00:26]} 52. Nxd4 {[%clk 0:00:32]}  g3 {[%clk 0:00:20]} 53. Nc6+ {[%clk 0:00:32]}  Kd6 {[%clk 0:00:10]} 54. Nxb4 {[%clk 0:00:33]}  Kc5 {[%clk 0:00:08]} 55. Na6+ {[%clk 0:00:28]}  Kb6 {[%clk 0:00:08]} 56. Nb4 {[%clk 0:00:29]}  Kc5 {[%clk 0:00:08]} 57. Nd5 {[%clk 0:00:30]}  Bc2 {[%clk 0:00:03]} 58. Kf3 {[%clk 0:00:21]}  Be4+ {[%clk 0:00:03]} 59. Kxg3 {[%clk 0:00:13]}  Bxd5 {[%clk 0:00:04]} 60. cxd5 {[%clk 0:00:12]}  Kxd5 {[%clk 0:00:05]} 61. b4 {[%clk 0:00:12]}  Kc4 {[%clk 0:00:05]} 62. b5 {[%clk 0:00:13]}  Kxb5 {[%clk 0:00:05]} 1/2-1/2

[Event "November 21 Late 2023"]
[Site "https://www.chess.com"]
[Date "2023.11.21"]
[Round "2"]
[White "Gutkin, Ilya"]
[Black "Wu, Derek"]
[Result "1-0"]
[Board "86"]
[TimeControl "180+1"]
[WhiteFideId "16203470"]
[BlackFideId "30914558"]
[WhiteElo "2248"]
[BlackElo "2211"]
[WhiteTeam "GER"]
[BlackTeam "USA"]
[WhiteClock "0:00:34"]
[BlackClock "0:00:27"]

1. e4 {[%clk 0:03:00]}  e6 {[%clk 0:02:59]} 2. d4 {[%clk 0:03:00]}  d5 {[%clk 0:03:00]} 3. Nc3 {[%clk 0:03:01]}  Nf6 {[%clk 0:03:00]} 4. e5 {[%clk 0:03:01]}  Nfd7 {[%clk 0:03:00]} 5. f4 {[%clk 0:03:00]}  c5 {[%clk 0:03:01]} 6. Nf3 {[%clk 0:03:00]}  Nc6 {[%clk 0:03:01]} 7. Be3 {[%clk 0:03:00]}  Qb6 {[%clk 0:03:01]} 8. Qd2 {[%clk 0:02:56]}  cxd4 {[%clk 0:02:52]} 9. Nxd4 {[%clk 0:02:55]}  Qxb2 {[%clk 0:02:40]} 10. Rb1 {[%clk 0:02:54]}  Qa3 {[%clk 0:02:40]} 11. Ncb5 {[%clk 0:02:12]}  Qxa2 {[%clk 0:02:39]} 12. Qc1 {[%clk 0:01:50]}  Qa5+ {[%clk 0:02:29]} 13. Kf2 {[%clk 0:01:41]}  a6 {[%clk 0:02:14]} 14. Ra1 {[%clk 0:01:34]}  Qd8 {[%clk 0:02:11]} 15. Bd3 {[%clk 0:01:31]}  Bc5 {[%clk 0:01:58]} 16. Nxc6 {[%clk 0:01:25]}  bxc6 {[%clk 0:01:45]} 17. Bxc5 {[%clk 0:01:25]}  Nxc5 {[%clk 0:01:45]} 18. Nd6+ {[%clk 0:01:25]}  Ke7 {[%clk 0:01:46]} 19. Qa3 {[%clk 0:01:24]}  Qb6 {[%clk 0:01:44]} 20. Kg3 {[%clk 0:01:13]}  g5 {[%clk 0:01:32]} 21. fxg5 {[%clk 0:01:07]}  h6 {[%clk 0:00:49]} 22. Rab1 {[%clk 0:01:05]}  Qa7 {[%clk 0:00:49]} 23. Rhf1 {[%clk 0:01:04]}  Rf8 {[%clk 0:00:44]} 24. gxh6 {[%clk 0:01:02]}  Kd8 {[%clk 0:00:38]} 25. h7 {[%clk 0:00:57]}  f5 {[%clk 0:00:36]} 26. exf6 {[%clk 0:00:52]}  Nxd3 {[%clk 0:00:29]} 27. Nb7+ {[%clk 0:00:36]}  Kc7 {[%clk 0:00:27]} 28. Qd6# {[%clk 0:00:34]} 1-0

[Event "November 21 Late 2023"]
[Site "https://www.chess.com"]
[Date "2023.11.21"]
[Round "2"]
[White "Sourath Biswas"]
[Black "Figorito, Nick"]
[Result "1/2-1/2"]
[Board "87"]
[TimeControl "180+1"]
[WhiteFideId "35091484"]
[BlackFideId "30923689"]
[WhiteElo "2171"]
[BlackElo "2385"]
[WhiteTeam "IND"]
[BlackTeam "USA"]
[WhiteClock "0:00:48"]
[BlackClock "0:00:09"]

1. d4 {[%clk 0:03:00]}  Nf6 {[%clk 0:03:00]} 2. Nf3 {[%clk 0:03:01]}  g6 {[%clk 0:03:00]} 3. Nc3 {[%clk 0:03:01]}  d5 {[%clk 0:03:00]} 4. Bf4 {[%clk 0:03:01]}  Bg7 {[%clk 0:03:00]} 5. Nb5 {[%clk 0:03:00]}  Na6 {[%clk 0:03:00]} 6. e3 {[%clk 0:03:00]}  c6 {[%clk 0:03:01]} 7. Nc3 {[%clk 0:02:58]}  Nc7 {[%clk 0:03:01]} 8. Ne5 {[%clk 0:02:57]}  Nd7 {[%clk 0:02:59]} 9. Nxd7 {[%clk 0:02:46]}  Bxd7 {[%clk 0:02:59]} 10. Be2 {[%clk 0:02:46]}  h5 {[%clk 0:02:58]} 11. h4 {[%clk 0:02:43]}  Bf5 {[%clk 0:02:53]} 12. Bf3 {[%clk 0:02:38]}  a6 {[%clk 0:02:49]} 13. g4 {[%clk 0:02:32]}  hxg4 {[%clk 0:02:49]} 14. Bxg4 {[%clk 0:02:33]}  Bxg4 {[%clk 0:02:24]} 15. Qxg4 {[%clk 0:02:33]}  Bf6 {[%clk 0:02:24]} 16. h5 {[%clk 0:02:31]}  gxh5 {[%clk 0:02:15]} 17. Rxh5 {[%clk 0:02:32]}  Rxh5 {[%clk 0:02:16]} 18. Qg8+ {[%clk 0:02:30]}  Kd7 {[%clk 0:02:13]} 19. Qg4+ {[%clk 0:02:31]}  Ne6 {[%clk 0:02:04]} 20. Qxh5 {[%clk 0:02:30]}  Nxf4 {[%clk 0:02:04]} 21. exf4 {[%clk 0:02:30]}  Qh8 {[%clk 0:01:53]} 22. Qg4+ {[%clk 0:02:27]}  e6 {[%clk 0:01:47]} 23. O-O-O {[%clk 0:02:26]}  Bxd4 {[%clk 0:01:45]} 24. Na4 {[%clk 0:02:14]}  b5 {[%clk 0:01:40]} 25. f5 {[%clk 0:02:11]}  bxa4 {[%clk 0:01:25]} 26. fxe6+ {[%clk 0:02:10]}  fxe6 {[%clk 0:01:24]} 27. Rxd4 {[%clk 0:02:02]}  a3 {[%clk 0:01:22]} 28. Rb4 {[%clk 0:01:59]}  axb2+ {[%clk 0:01:18]} 29. Rxb2 {[%clk 0:01:38]}  Rg8 {[%clk 0:01:03]} 30. Rb7+ {[%clk 0:01:19]}  Kc8 {[%clk 0:01:03]} 31. Qb4 {[%clk 0:01:19]}  Rg1+ {[%clk 0:00:47]} 32. Kd2 {[%clk 0:01:19]}  Qh6+ {[%clk 0:00:44]} 33. f4 {[%clk 0:01:19]}  Qh2+ {[%clk 0:00:39]} 34. Kc3 {[%clk 0:01:19]}  Rg3+ {[%clk 0:00:28]} 35. Kb2 {[%clk 0:01:18]}  Qh8+ {[%clk 0:00:25]} 36. Kc1 {[%clk 0:01:06]}  Rg1+ {[%clk 0:00:17]} 37. Kd2 {[%clk 0:01:07]}  Rg2+ {[%clk 0:00:16]} 38. Kc1 {[%clk 0:01:06]}  Rg1+ {[%clk 0:00:15]} 39. Kd2 {[%clk 0:01:06]}  Rg2+ {[%clk 0:00:15]} 40. Ke3 {[%clk 0:00:54]}  Rg3+ {[%clk 0:00:10]} 41. Kd2 {[%clk 0:00:48]}  Rg2+ {[%clk 0:00:09]} 1/2-1/2

[Event "November 21 Late 2023"]
[Site "https://www.chess.com"]
[Date "2023.11.21"]
[Round "2"]
[White "Shapiro, Daniel"]
[Black "Lamard, Guillaume"]
[Result "0-1"]
[Board "89"]
[TimeControl "180+1"]
[WhiteFideId "2001780"]
[BlackFideId "600261"]
[WhiteElo "2335"]
[BlackElo "2409"]
[WhiteTeam "USA"]
[BlackTeam "FRA"]
[WhiteClock "0:00:00"]
[BlackClock "0:00:36"]

1. d4 {[%clk 0:03:00]}  Nf6 {[%clk 0:02:57]} 2. c4 {[%clk 0:03:00]}  g6 {[%clk 0:02:58]} 3. Nc3 {[%clk 0:03:00]}  Bg7 {[%clk 0:02:59]} 4. e4 {[%clk 0:03:00]}  O-O {[%clk 0:02:59]} 5. Be2 {[%clk 0:03:00]}  d6 {[%clk 0:03:00]} 6. Nf3 {[%clk 0:03:00]}  Nbd7 {[%clk 0:02:59]} 7. Be3 {[%clk 0:02:59]}  e5 {[%clk 0:02:59]} 8. d5 {[%clk 0:02:58]}  Ng4 {[%clk 0:02:55]} 9. Bg5 {[%clk 0:02:57]}  f6 {[%clk 0:02:55]} 10. Bh4 {[%clk 0:02:53]}  h5 {[%clk 0:02:55]} 11. h3 {[%clk 0:02:52]}  Nh6 {[%clk 0:02:55]} 12. b4 {[%clk 0:02:41]}  a5 {[%clk 0:02:54]} 13. a3 {[%clk 0:02:41]}  g5 {[%clk 0:02:54]} 14. Bg3 {[%clk 0:02:40]}  f5 {[%clk 0:02:55]} 15. exf5 {[%clk 0:02:37]}  e4 {[%clk 0:02:31]} 16. Nd4 {[%clk 0:01:43]}  Nxf5 {[%clk 0:02:28]} 17. Ncb5 {[%clk 0:01:36]}  axb4 {[%clk 0:02:18]} 18. Ne6 {[%clk 0:01:15]}  Qf6 {[%clk 0:02:11]} 19. Ra2 {[%clk 0:01:15]}  Nxg3 {[%clk 0:01:53]} 20. fxg3 {[%clk 0:01:06]}  Qf2+ {[%clk 0:01:53]} 21. Kd2 {[%clk 0:01:07]}  Ne5 {[%clk 0:01:53]} 22. Nxf8 {[%clk 0:00:57]}  Bxf8 {[%clk 0:01:13]} 23. Rf1 {[%clk 0:00:44]}  Nxc4+ {[%clk 0:01:11]} 24. Kc1 {[%clk 0:00:44]}  Qe3+ {[%clk 0:01:12]} 25. Kb1 {[%clk 0:00:45]}  Nxa3+ {[%clk 0:01:07]} 26. Nxa3 {[%clk 0:00:43]}  bxa3 {[%clk 0:01:06]} 27. Bxh5 {[%clk 0:00:33]}  Qd3+ {[%clk 0:00:51]} 28. Qxd3 {[%clk 0:00:29]}  exd3 {[%clk 0:00:52]} 29. Bg6 {[%clk 0:00:27]}  Bg7 {[%clk 0:00:45]} 30. Bxd3 {[%clk 0:00:22]}  Bd7 {[%clk 0:00:44]} 31. Bf5 {[%clk 0:00:14]}  Bb5 {[%clk 0:00:44]} 32. Be6+ {[%clk 0:00:12]}  Kh8 {[%clk 0:00:44]} 33. Rf7 {[%clk 0:00:11]}  Bd3+ {[%clk 0:00:36]} 34. Kc1 {[%clk 0:00:10]}  Bc4 {[%clk 0:00:37]} 35. Rff2 {[%clk 0:00:05]}  Bxa2 {[%clk 0:00:35]} 36. Rxa2 {[%clk 0:00:06]}  Bb2+ {[%clk 0:00:35]} 37. Kc2 {[%clk 0:00:00]}  Rf8 {[%clk 0:00:36]} 0-1

[Event "November 21 Late 2023"]
[Site "https://www.chess.com"]
[Date "2023.11.21"]
[Round "2"]
[White "Omariev, Maksim"]
[Black "le-castor-faineant"]
[Result "1-0"]
[Board "92"]
[TimeControl "180+1"]
[WhiteFideId "4193423"]
[WhiteElo "2525"]
[BlackElo "2250"]
[WhiteTeam "RUS"]
[WhiteClock "0:00:08"]
[BlackClock "0:00:07"]

1. g4 {[%clk 0:03:00]}  d5 {[%clk 0:02:59]} 2. Bg2 {[%clk 0:03:01]}  Bxg4 {[%clk 0:02:59]} 3. c4 {[%clk 0:03:01]}  c6 {[%clk 0:02:55]} 4. Qb3 {[%clk 0:03:00]}  Nf6 {[%clk 0:02:48]} 5. Qxb7 {[%clk 0:03:00]}  Nbd7 {[%clk 0:02:48]} 6. Nc3 {[%clk 0:03:00]}  e6 {[%clk 0:02:47]} 7. Qxc6 {[%clk 0:02:58]}  Rc8 {[%clk 0:02:46]} 8. Qa6 {[%clk 0:02:59]}  Rxc4 {[%clk 0:02:45]} 9. b3 {[%clk 0:03:00]}  Rc7 {[%clk 0:02:42]} 10. Nb5 {[%clk 0:02:42]}  Rc8 {[%clk 0:02:37]} 11. Ba3 {[%clk 0:02:38]}  Bxa3 {[%clk 0:02:35]} 12. Qxa3 {[%clk 0:02:37]}  Qe7 {[%clk 0:01:55]} 13. Nd6+ {[%clk 0:02:17]}  Kf8 {[%clk 0:01:51]} 14. h3 {[%clk 0:02:01]}  Bh5 {[%clk 0:01:48]} 15. Nf3 {[%clk 0:01:47]}  Rc6 {[%clk 0:01:44]} 16. Nb5 {[%clk 0:01:45]}  Qxa3 {[%clk 0:01:44]} 17. Nxa3 {[%clk 0:01:46]}  Bxf3 {[%clk 0:01:40]} 18. Bxf3 {[%clk 0:01:44]}  Ke7 {[%clk 0:01:39]} 19. d4 {[%clk 0:01:38]}  Rhc8 {[%clk 0:01:37]} 20. Kd2 {[%clk 0:01:39]}  Ne8 {[%clk 0:01:20]} 21. Rhc1 {[%clk 0:01:35]}  Rxc1 {[%clk 0:01:18]} 22. Rxc1 {[%clk 0:01:35]}  Rxc1 {[%clk 0:01:19]} 23. Kxc1 {[%clk 0:01:36]}  Nd6 {[%clk 0:01:18]} 24. e3 {[%clk 0:01:32]}  g5 {[%clk 0:01:09]} 25. Kd2 {[%clk 0:01:27]}  Nf6 {[%clk 0:01:06]} 26. Be2 {[%clk 0:01:15]}  Nde4+ {[%clk 0:01:01]} 27. Ke1 {[%clk 0:01:14]}  Nc3 {[%clk 0:01:01]} 28. Nb5 {[%clk 0:01:12]}  Nxb5 {[%clk 0:00:59]} 29. Bxb5 {[%clk 0:01:12]}  h5 {[%clk 0:00:56]} 30. f3 {[%clk 0:01:03]}  h4 {[%clk 0:00:55]} 31. b4 {[%clk 0:00:58]}  Kd6 {[%clk 0:00:55]} 32. a4 {[%clk 0:00:54]}  Nh5 {[%clk 0:00:53]} 33. a5 {[%clk 0:00:51]}  f6 {[%clk 0:00:53]} 34. Bd3 {[%clk 0:00:42]}  e5 {[%clk 0:00:51]} 35. dxe5+ {[%clk 0:00:35]}  fxe5 {[%clk 0:00:49]} 36. Bg6 {[%clk 0:00:28]}  Nf6 {[%clk 0:00:41]} 37. Kd2 {[%clk 0:00:29]}  Nd7 {[%clk 0:00:28]} 38. Kc3 {[%clk 0:00:21]}  Nf8 {[%clk 0:00:27]} 39. Bf5 {[%clk 0:00:19]}  Kc6 {[%clk 0:00:21]} 40. Kb3 {[%clk 0:00:19]}  Kb5 {[%clk 0:00:19]} 41. Bd3+ {[%clk 0:00:16]}  Kc6 {[%clk 0:00:18]} 42. Bf5 {[%clk 0:00:11]}  Kb5 {[%clk 0:00:18]} 43. Kc3 {[%clk 0:00:10]}  Kc6 {[%clk 0:00:17]} 44. e4 {[%clk 0:00:05]}  d4+ {[%clk 0:00:16]} 45. Kc4 {[%clk 0:00:06]}  a6 {[%clk 0:00:14]} 46. Bc8 {[%clk 0:00:06]}  Ng6 {[%clk 0:00:13]} 47. Bxa6 {[%clk 0:00:06]}  Nf4 {[%clk 0:00:12]} 48. b5+ {[%clk 0:00:07]}  Kc7 {[%clk 0:00:11]} 49. b6+ {[%clk 0:00:07]}  Kb8 {[%clk 0:00:12]} 50. Bb5 {[%clk 0:00:07]}  Nxh3 {[%clk 0:00:11]} 51. a6 {[%clk 0:00:07]}  Nf4 {[%clk 0:00:09]} 52. Bc6 {[%clk 0:00:07]}  h3 {[%clk 0:00:07]} 53. a7+ {[%clk 0:00:07]}  Kc8 {[%clk 0:00:07]} 54. a8=Q# {[%clk 0:00:08]} 1-0

[Event "November 21 Late 2023"]
[Site "https://www.chess.com"]
[Date "2023.11.21"]
[Round "2"]
[White "Firouzja, Alireza"]
[Black "Estrada Nieto, Julian"]
[Result "1-0"]
[Board "93"]
[TimeControl "180+1"]
[WhiteFideId "12573981"]
[BlackFideId "5101018"]
[WhiteElo "2896"]
[BlackElo "2161"]
[WhiteTeam "FRA"]
[BlackTeam "ESP"]
[WhiteClock "0:00:51"]
[BlackClock "0:00:00"]

1. a3 {[%clk 0:03:00]}  d5 {[%clk 0:02:55]} 2. c3 {[%clk 0:02:58]}  Nf6 {[%clk 0:02:56]} 3. Nf3 {[%clk 0:02:57]}  Bf5 {[%clk 0:02:49]} 4. Qb3 {[%clk 0:02:55]}  Nbd7 {[%clk 0:02:34]} 5. d4 {[%clk 0:02:42]}  Rb8 {[%clk 0:02:19]} 6. Bf4 {[%clk 0:02:42]}  e6 {[%clk 0:02:18]} 7. Nbd2 {[%clk 0:02:40]}  Bd6 {[%clk 0:02:18]} 8. Bxd6 {[%clk 0:02:40]}  cxd6 {[%clk 0:02:18]} 9. Nh4 {[%clk 0:02:39]}  Be4 {[%clk 0:02:15]} 10. e3 {[%clk 0:02:36]}  O-O {[%clk 0:02:13]} 11. Be2 {[%clk 0:02:35]}  h6 {[%clk 0:02:05]} 12. O-O {[%clk 0:02:33]}  Bh7 {[%clk 0:02:00]} 13. Nhf3 {[%clk 0:02:29]}  e5 {[%clk 0:01:56]} 14. a4 {[%clk 0:02:18]}  Re8 {[%clk 0:01:52]} 15. a5 {[%clk 0:02:15]}  Qc7 {[%clk 0:01:47]} 16. Qb4 {[%clk 0:02:12]}  e4 {[%clk 0:01:43]} 17. Ne1 {[%clk 0:02:11]}  b6 {[%clk 0:01:35]} 18. a6 {[%clk 0:01:59]}  Bf5 {[%clk 0:01:30]} 19. Nc2 {[%clk 0:01:54]}  Bg4 {[%clk 0:01:26]} 20. Bb5 {[%clk 0:01:54]}  Re6 {[%clk 0:01:21]} 21. Rfc1 {[%clk 0:01:54]}  Nh7 {[%clk 0:01:19]} 22. c4 {[%clk 0:01:47]}  dxc4 {[%clk 0:01:03]} 23. Qxc4 {[%clk 0:01:44]}  Qd8 {[%clk 0:00:57]} 24. Nb4 {[%clk 0:01:44]}  Rg6 {[%clk 0:00:32]} 25. Nc6 {[%clk 0:01:24]}  Qg5 {[%clk 0:00:29]} 26. Nxe4 {[%clk 0:01:21]}  Qh4 {[%clk 0:00:15]} 27. Nxb8 {[%clk 0:01:16]}  Nxb8 {[%clk 0:00:13]} 28. Qc7 {[%clk 0:01:03]}  Nd7 {[%clk 0:00:10]} 29. Bxd7 {[%clk 0:01:02]}  Bf3 {[%clk 0:00:10]} 30. Ng3 {[%clk 0:00:58]}  Nf6 {[%clk 0:00:08]} 31. Qd8+ {[%clk 0:00:54]}  Kh7 {[%clk 0:00:08]} 32. Bf5 {[%clk 0:00:54]}  Bxg2 {[%clk 0:00:00]} 33. Rc8 {[%clk 0:00:51]} 1-0

[Event "November 21 Late 2023"]
[Site "https://www.chess.com"]
[Date "2023.11.21"]
[Round "2"]
[White "Miszler, Levente"]
[Black "Maghsoodloo, Parham"]
[Result "1/2-1/2"]
[Board "94"]
[TimeControl "180+1"]
[WhiteFideId "763276"]
[BlackFideId "12539929"]
[WhiteElo "2186"]
[BlackElo "2660"]
[WhiteTeam "HUN"]
[BlackTeam "IRI"]
[WhiteClock "0:00:49"]
[BlackClock "0:01:47"]

1. d4 {[%clk 0:03:00]}  Nf6 {[%clk 0:02:59]} 2. Nf3 {[%clk 0:02:59]}  d5 {[%clk 0:02:58]} 3. c4 {[%clk 0:02:59]}  e6 {[%clk 0:02:58]} 4. g3 {[%clk 0:02:58]}  Bb4+ {[%clk 0:02:57]} 5. Bd2 {[%clk 0:02:57]}  a5 {[%clk 0:02:57]} 6. Bg2 {[%clk 0:02:56]}  O-O {[%clk 0:02:57]} 7. O-O {[%clk 0:02:56]}  Nbd7 {[%clk 0:02:57]} 8. Qc2 {[%clk 0:02:55]}  Be7 {[%clk 0:02:56]} 9. Bf4 {[%clk 0:02:53]}  c6 {[%clk 0:02:55]} 10. Nbd2 {[%clk 0:02:49]}  a4 {[%clk 0:02:55]} 11. Ne5 {[%clk 0:02:49]}  Qa5 {[%clk 0:02:55]} 12. e4 {[%clk 0:02:47]}  Nh5 {[%clk 0:02:46]} 13. exd5 {[%clk 0:02:28]}  Nxf4 {[%clk 0:02:41]} 14. gxf4 {[%clk 0:02:16]}  cxd5 {[%clk 0:02:38]} 15. Rfe1 {[%clk 0:01:54]}  Bb4 {[%clk 0:02:34]} 16. Re2 {[%clk 0:01:54]}  Nf6 {[%clk 0:02:30]} 17. c5 {[%clk 0:01:52]}  a3 {[%clk 0:02:28]} 18. bxa3 {[%clk 0:01:50]}  Qxa3 {[%clk 0:02:27]} 19. Rb1 {[%clk 0:01:47]}  Bxd2 {[%clk 0:02:04]} 20. Rxd2 {[%clk 0:01:46]}  Nh5 {[%clk 0:02:04]} 21. Rb3 {[%clk 0:01:44]}  Qa4 {[%clk 0:02:01]} 22. Qb1 {[%clk 0:01:32]}  Nxf4 {[%clk 0:01:58]} 23. Rg3 {[%clk 0:01:32]}  f6 {[%clk 0:01:53]} 24. Ng4 {[%clk 0:01:21]}  e5 {[%clk 0:01:53]} 25. Nh6+ {[%clk 0:00:51]}  Kh8 {[%clk 0:01:53]} 26. Qb6 {[%clk 0:00:52]}  Qc6 {[%clk 0:01:47]} 27. Nf7+ {[%clk 0:00:48]}  Kg8 {[%clk 0:01:45]} 28. Nh6+ {[%clk 0:00:48]}  Kh8 {[%clk 0:01:46]} 29. Nf7+ {[%clk 0:00:48]}  Kg8 {[%clk 0:01:46]} 30. Nh6+ {[%clk 0:00:49]}  Kh8 {[%clk 0:01:47]} 1/2-1/2